bitfinex/quotes_SOLUSD_20220114
["timestamp","ask_amount","ask_price","bid_price","bid_amount"]
[1642189627356,24.46986138,149.17,149.11,25.9269]
[1642189629763,24.46986138,149.17,149.11,15.87]
[1642189629961,27.46986138,149.17,149.11,15.87]
[1642189630461,26.46986138,149.17,149.11,15.87]
[1642189630761,36.52826138,149.17,149.11,15.87]
[1642189631562,26.46986138,149.17,149.11,15.87]
[1642189632264,24.5558,149.17,149.11,15.87]
[1642189633665,24.5558,149.17,149.11,15.62]
[1642189633865,34.6143,149.17,149.11,15.62]
[1642189634097,37.5463,149.17,149.11,15.62]
[1642189635370,37.5463,149.17,149.11,15.87]
[1642189636071,34.8643,149.17,149.11,15.87]
[1642189637872,34.8643,149.17,149.11,15.62]
[1642189638072,10.0606,149.14,149.11,6.0]
[1642189638273,6.06439993,149.13,149.11,6.0]
[1642189638471,30.66623961,149.12,149.11,6.0]
[1642189639480,30.66623961,149.12,149.07,15.62]
[1642189640679,30.66623961,149.12,149.07,15.87]
[1642189642907,2.682,149.14,149.07,15.87]
[1642189643306,1.91406138,149.15,149.07,17.57077588]
[1642189643507,4.59606138,149.16,149.07,17.57077588]
[1642189643909,30.51191992,149.15,149.07,25.9296]
[1642189646415,4.91406138,149.17,149.11,10.0569]
[1642189646611,4.91406138,149.17,149.12,77.63]
[1642189646911,4.91406138,149.17,149.12,79.33077588]
[1642189647110,4.91406138,149.17,149.13,1.70077588]
[1642189647312,4.91406138,149.17,149.14,9.62]
[1642189647511,1.91406138,149.21,149.15,60.0]
[1642189647713,1.91406138,149.21,149.16,9.62]
[1642189647911,1.91406138,149.21,149.16,79.33077588]
[1642189648114,1.91406138,149.21,149.16,205.81077588]
[1642189648313,1.91406138,149.21,149.17,1.70077588]
[1642189648512,3.28353273,149.25,149.22,10.0474]
[1642189648712,3.28353273,149.25,149.23,9.62]
[1642189648915,6.06439993,149.24,149.23,9.62]
[1642189649121,3.28353273,149.28,149.23,15.87]
[1642189649716,3.28353273,149.28,149.23,36.39457588]
[1642189649916,3.28353273,149.28,149.23,156.88457588]
[1642189650320,5.05413749,149.32,149.26,49.0]
[1642189650516,5.05413749,149.32,149.27,9.62]
[1642189650719,3.81233945,149.34,149.27,11.32077588]
[1642189650918,3.81233945,149.34,149.29,10.0422]
[1642189651116,3.81233945,149.34,149.3,9.62]
[1642189651317,3.81233945,149.34,149.31,9.62]
[1642189651516,6.06439993,149.33,149.31,15.87]
[1642189652015,24.89475348,149.36,149.31,25.9137]
[1642189653226,27.57275348,149.36,149.31,25.9137]
[1642189653422,27.57275348,149.36,149.31,25.6637]
[1642189653622,27.57275348,149.36,149.31,6.0]
[1642189653822,27.57275348,149.36,149.27,9.62]
[1642189653823,27.82275348,149.36,149.27,9.62]
[1642189654023,27.82275348,149.36,149.21,120.23]
[1642189654024,27.82275348,149.36,149.25,9.62]
[1642189654824,3.82346427,149.35,149.25,9.62]
[1642189655023,12.726,149.34,149.25,19.9173]
[1642189655427,12.976,149.34,149.25,25.9173]
[1642189655626,12.476,149.34,149.25,25.9173]
[1642189655829,3.82346427,149.33,149.25,25.9173]
[1642189656127,3.82346427,149.33,149.25,15.62]
[1642189656128,2.678,149.32,149.25,15.62]
[1642189656526,2.928,149.32,149.25,15.62]
[1642189657331,24.95060349,149.3,149.25,6.0]
[1642189657526,2.678,149.29,149.2,16.0505]
[1642189657930,2.928,149.29,149.2,16.0505]
[1642189658327,12.9791,149.29,149.2,16.0505]
[1642189658730,12.9791,149.29,149.2,25.6705]
[1642189659533,2.678,149.29,149.2,25.6705]
[1642189659929,2.678,149.29,149.2,25.9205]
[1642189660660,27.63060349,149.3,149.2,25.9205]
[1642189660859,27.88060349,149.3,149.2,25.9205]
[1642189661558,27.88060349,149.3,149.23,10.0488]
[1642189661760,25.20060349,149.3,149.23,10.0488]
[1642189661959,25.20060349,149.3,149.23,16.2988]
[1642189664563,25.20060349,149.3,149.23,6.25]
[1642189665568,25.20060349,149.3,149.23,0.25]
[1642189665770,25.20060349,149.3,149.22,15.87]
[1642189666465,25.20060349,149.3,149.23,10.0489]
[1642189666865,25.20060349,149.3,149.23,16.2989]
[1642189667967,2.678,149.29,149.23,16.2989]
[1642189669167,2.678,149.29,149.23,6.0]
[1642189669373,2.928,149.29,149.23,6.0]
[1642189669568,2.928,149.29,149.18,15.62]
[1642189669768,51.0827,149.29,149.18,15.62]
[1642189670471,61.1341,149.29,149.19,10.0514]
[1642189670772,61.1341,149.29,149.19,19.6714]
[1642189670969,61.1341,149.29,149.19,25.9214]
[1642189671970,61.1341,149.29,149.19,25.6714]
[1642189672874,3.82526398,149.28,149.19,25.6714]
[1642189673175,2.68,149.27,149.19,25.6714]
[1642189673376,2.68,149.27,149.19,25.9214]
[1642189673574,2.93,149.27,149.19,25.6714]
[1642189673776,2.93,149.27,149.13,9.62]
[1642189673976,23.6973,149.26,149.14,9.62]
[1642189674176,27.59722081,149.22,149.12,9.62]
[1642189674376,2.681,149.21,149.12,9.62]
[1642189674677,2.931,149.21,149.12,9.62]
[1642189675077,2.931,149.21,149.12,15.87]
[1642189675479,26.15448751,149.21,149.13,10.0553]
[1642189675880,26.15448751,149.21,149.13,16.3053]
[1642189677581,23.512,149.21,149.13,16.3053]
[1642189678683,27.59722081,149.22,149.13,27.62607588]
[1642189679506,27.59722081,149.22,149.13,25.9253]
[1642189679708,27.59722081,149.22,149.13,27.62607588]
[1642189679906,27.59722081,149.22,149.13,25.9253]
[1642189681513,27.84722081,149.22,149.13,25.9253]
[1642189684709,27.59722081,149.22,149.13,25.9253]
[1642189684910,27.59722081,149.22,149.17,10.0528]
[1642189685310,27.59722081,149.22,149.17,16.3028]
[1642189687511,27.59722081,149.22,149.17,16.0528]
[1642189687716,27.59722081,149.22,149.12,9.62]
[1642189687915,24.7971,149.21,149.14,6.0]
[1642189688112,24.7971,149.21,149.12,15.62]
[1642189688512,92.8071,149.21,149.12,15.62]
[1642189688713,92.8071,149.21,149.12,6.0]
[1642189688714,103.1137,149.21,149.12,6.0]
[1642189688917,2.681,149.2,149.12,6.0]
[1642189689114,2.681,149.2,149.09,15.62]
[1642189689314,2.931,149.2,149.09,15.62]
[1642189689914,70.941,149.2,149.09,15.62]
[1642189690415,10.0584,149.19,149.09,25.928]
[1642189690614,2.682,149.18,149.09,25.928]
[1642189691014,2.932,149.18,149.09,25.928]
[1642189691215,25.6825,149.18,149.09,25.928]
[1642189691422,25.6825,149.18,149.09,15.62]
[1642189691423,35.7413,149.18,149.09,15.62]
[1642189691617,35.7413,149.18,149.09,6.0]
[1642189691817,47.9823,149.18,149.09,6.0]
[1642189692021,47.9823,149.18,149.04,52.51532151]
[1642189692218,23.24929613,149.16,149.03,5.74447954]
[1642189692418,10.0637,149.11,149.03,5.74447954]
[1642189692620,22.60254359,149.09,149.03,5.74447954]
[1642189693020,22.60254359,149.09,149.01,10.0635]
[1642189693219,22.60254359,149.09,149.01,19.6835]
[1642189693419,22.85254359,149.09,149.01,25.6835]
[1642189693619,22.85254359,149.09,149.01,25.9335]
[1642189694320,22.85254359,149.09,149.01,25.6835]
[1642189694521,25.53554359,149.09,149.01,25.6835]
[1642189695523,25.53554359,149.09,149.01,6.0]
[1642189695524,35.60024359,149.09,149.01,6.0]
[1642189695926,35.60024359,149.09,148.99,16.0647]
[1642189696224,59.09834359,149.09,148.99,6.0]
[1642189696627,59.09834359,149.09,148.98,6.0]
[1642189696628,68.01,149.08,148.98,6.0]
[1642189696825,2.684,149.07,148.96,21.36447954]
[1642189697026,10.0674,149.05,148.96,21.36447954]
[1642189697225,23.17011478,149.03,148.96,21.36447954]
[1642189697627,23.42011478,149.03,148.96,21.36447954]
[1642189698027,23.42011478,149.03,148.96,15.62]
[1642189698828,23.42011478,149.03,148.96,15.87]
[1642189699027,23.17011478,149.03,148.96,15.87]
[1642189699230,23.17011478,149.03,148.96,15.62]
[1642189700129,23.17011478,149.03,148.96,6.0]
[1642189700328,23.42011478,149.03,148.96,6.0]
[1642189700529,2.684,149.02,148.94,16.0683]
[1642189701029,2.934,149.02,148.94,16.0683]
[1642189701429,2.934,149.02,148.94,6.0]
[1642189701833,13.0034,149.02,148.92,16.0694]
[1642189702035,61.3223,149.02,148.92,16.0694]
[1642189702832,61.3223,149.02,148.93,3.83093125]
[1642189703037,61.3223,149.02,148.93,10.08093125]
[1642189703234,129.3323,149.02,148.93,10.08093125]
[1642189703631,129.3323,149.02,148.93,3.83093125]
[1642189703831,140.65307588,149.02,148.89,5.74447954]
[1642189704032,146.65307588,149.02,148.89,5.74447954]
[1642189704933,146.65307588,149.02,148.89,11.74447954]
[1642189705134,146.65307588,149.02,148.86,15.62]
[1642189705374,146.65307588,149.02,148.87,10.0729]
[1642189705534,146.65307588,149.02,148.87,16.0729]
[1642189706136,146.65307588,149.02,148.87,6.0]
[1642189706337,180.60307588,149.02,148.87,6.0]
[1642189706537,190.55141285,149.02,148.85,11.74447954]
[1642189706739,199.16641285,149.02,148.85,13.40816268]
[1642189706938,199.16641285,149.02,148.85,19.40816268]
[1642189707937,199.16641285,149.02,148.85,19.65816268]
[1642189708139,190.55141285,149.02,148.85,6.25]
[1642189708336,310.78141285,149.02,148.85,6.25]
[1642189709138,197.03598072,149.02,148.84,6.0]
[1642189709339,10.0784,148.92,148.84,6.0]
[1642189709540,10.0784,148.92,148.83,5.74447954]
[1642189709541,30.50007075,148.9,148.83,11.74447954]
[1642189709736,30.50007075,148.9,148.83,5.74447954]
[1642189709937,30.75007075,148.9,148.83,11.74447954]
[1642189710341,98.76007075,148.9,148.83,6.0]
[1642189710538,98.76007075,148.9,148.81,11.74447954]
[1642189710741,98.51007075,148.9,148.81,5.74447954]
[1642189710940,10.0784,148.89,148.81,11.74447954]
[1642189711242,10.0784,148.89,148.81,5.74447954]
[1642189711440,68.01,148.88,148.81,5.74447954]
[1642189711639,70.697,148.88,148.81,5.74447954]
[1642189711840,76.697,148.88,148.81,5.74447954]
[1642189712145,76.947,148.88,148.81,5.74447954]
[1642189712540,10.082,148.85,148.81,5.74447954]
[1642189712743,22.99619843,148.84,148.81,11.74447954]
[1642189712941,22.99619843,148.84,148.81,6.25]
[1642189712942,6.06439993,148.83,148.81,6.25]
[1642189713145,6.06439993,148.83,148.81,6.0]
[1642189713341,6.06439993,148.83,148.76,11.74447954]
[1642189713540,6.06439993,148.83,148.76,21.61447954]
[1642189713741,6.06439993,148.83,148.76,31.69517954]
[1642189713941,9.62,148.93,148.77,1.70077588]
[1642189714146,2.688,148.95,148.79,93.7]
[1642189714340,9.62,148.96,148.8,9.62]
[1642189714542,2.687,148.95,148.8,17.57077588]
[1642189714744,31.84923761,148.91,148.8,17.57077588]
[1642189714943,31.84923761,148.91,148.81,10.0768]
[1642189715344,31.84923761,148.91,148.81,16.3268]
[1642189715543,31.84923761,148.91,148.81,6.25]
[1642189715744,31.84923761,148.91,148.81,6.0]
[1642189715944,31.84923761,148.91,148.81,0.25]
[1642189716144,27.6147,148.9,148.81,0.25]
[1642189716345,68.01,148.88,148.77,23.28368314]
[1642189716545,23.1231,148.87,148.77,15.62]
[1642189716744,23.1231,148.87,148.77,15.12]
[1642189717546,23.1231,148.87,148.77,15.37]
[1642189718147,23.1231,148.87,148.77,25.4496]
[1642189718846,23.1231,148.87,148.77,31.19407954]
[1642189719248,23.1231,148.87,148.77,11.74447954]
[1642189719547,30.48598872,148.85,148.77,5.74447954]
[1642189719747,2.687,148.84,148.77,5.74447954]
[1642189719949,2.937,148.84,148.77,5.74447954]
[1642189720381,10.0831,148.83,148.77,5.74447954]
[1642189720548,10.3331,148.83,148.77,5.74447954]
[1642189720748,10.3331,148.83,148.77,11.74447954]
[1642189720951,10.3331,148.83,148.77,11.99447954]
[1642189721751,10.3331,148.83,148.77,6.25]
[1642189721949,10.3331,148.83,148.77,0.25]
[1642189722149,10.3331,148.83,148.77,6.25]
[1642189722352,10.3331,148.83,148.77,6.0]
[1642189722557,10.3331,148.83,148.77,6.25]
[1642189722751,10.3331,148.83,148.77,0.25]
[1642189723452,2.687,148.84,148.73,11.99447954]
[1642189723651,55.43658872,148.85,148.77,10.0801]
[1642189724056,25.3588,148.87,148.77,16.3301]
[1642189724354,2.687,148.88,148.78,9.62]
[1642189724554,528.47261248,148.93,148.78,15.87]
[1642189724754,525.78561248,148.93,148.81,10.0773]
[1642189724953,23.20263517,148.92,148.81,16.3273]
[1642189725353,23.20263517,148.92,148.82,9.62]
[1642189725555,23.20263517,148.92,148.82,15.87]
[1642189725756,23.20263517,148.92,148.84,10.0754]
[1642189725956,23.20263517,148.92,148.84,16.3254]
[1642189726256,23.20263517,148.92,148.84,6.25]
[1642189726658,23.20263517,148.92,148.84,0.25]
[1642189727562,2.686,148.93,148.82,15.87]
[1642189727888,2.686,148.93,148.83,10.076]
[1642189728084,47.7448,148.94,148.84,9.62]
[1642189728486,47.7448,148.94,148.84,15.87]
[1642189728687,26.14130159,148.93,148.84,15.87]
[1642189728986,26.14130159,148.93,148.84,25.9449]
[1642189729387,26.14130159,148.93,148.84,25.6949]
[1642189729588,2.686,148.92,148.84,15.62]
[1642189729986,13.0134,148.92,148.84,15.62]
[1642189730188,2.936,148.92,148.84,15.62]
[1642189730390,0.25,148.92,148.84,15.62]
[1642189730790,28.82730159,148.93,148.84,15.87]
[1642189730990,29.07730159,148.93,148.84,15.87]
[1642189731389,29.07730159,148.93,148.84,15.62]
[1642189731891,39.15370159,148.93,148.84,15.62]
[1642189733091,39.15370159,148.93,148.84,15.87]
[1642189735706,38.90370159,148.93,148.84,15.87]
[1642189736504,68.01,148.92,148.84,15.62]
[1642189736706,2.686,148.91,148.84,6.0]
[1642189737110,68.01,148.9,148.81,6.0]
[1642189737307,68.01,148.9,148.8,6.0]
[1642189737507,2.687,148.89,148.79,11.74447954]
[1642189737709,2.687,148.89,148.79,5.74447954]
[1642189737908,2.687,148.9,148.79,6.0]
[1642189738108,12.7652,148.91,148.79,16.0782]
[1642189738311,12.7652,148.91,148.79,6.0]
[1642189738509,30.08597588,148.91,148.78,6.0]
[1642189738808,24.08597588,148.91,148.76,21.36447954]
[1642189739008,24.33597588,148.91,148.76,21.36447954]
[1642189739440,24.33597588,148.91,148.76,21.61447954]
[1642189739645,10.0794,148.89,148.76,31.69507954]
[1642189739844,31.15975962,148.87,148.76,31.69507954]
[1642189740043,31.40975962,148.87,148.76,31.69507954]
[1642189740844,31.40975962,148.87,148.79,3.83433259]
[1642189741047,31.40975962,148.87,148.79,10.08433259]
[1642189741649,79.0,148.86,148.71,13.23020809]
[1642189741847,79.0,148.86,148.63,421.23207886]
[1642189741848,120.23,148.74,148.63,421.23207886]
[1642189742050,43.30708682,148.73,148.56,13.99463534]
[1642189742250,3.5,148.67,148.55,9.62]
[1642189742449,28.29434967,148.66,148.52,9.62]
[1642189742651,30.98534967,148.66,148.5,22.26715682]
[1642189742888,31.23534967,148.66,148.52,33.95]
[1642189743047,9.62,148.65,148.52,33.45]
[1642189743246,10.0952,148.63,148.52,43.5441]
[1642189743453,2.692,148.64,148.52,49.5441]
[1642189743646,9.62,148.65,148.52,49.5441]
[1642189743848,9.62,148.65,148.52,16.0941]
[1642189744449,31.93114863,148.64,148.52,10.0941]
[1642189744847,41.80114863,148.64,148.52,17.773735]
[1642189745047,41.80114863,148.64,148.52,7.679635]
[1642189745249,2.692,148.63,148.52,7.679635]
[1642189745447,9.62,148.62,148.52,7.679635]
[1642189745649,9.62,148.62,148.5,17.775235]
[1642189745650,42.74856502,148.61,148.5,17.775235]
[1642189746051,52.61856502,148.61,148.5,17.775235]
[1642189746248,49.92656502,148.61,148.5,17.775235]
[1642189746665,49.67656502,148.61,148.5,17.775235]
[1642189746861,49.92656502,148.61,148.5,17.775235]
[1642189747062,39.82986502,148.61,148.5,10.0956]
[1642189747262,30.20986502,148.61,148.5,10.0956]
[1642189747460,2.692,148.63,148.5,10.0956]
[1642189747659,2.692,148.64,148.5,10.0956]
[1642189747860,2.692,148.65,148.51,9.62]
[1642189748061,26.675,148.66,148.58,10.0917]
[1642189748261,23.983,148.66,148.58,10.0917]
[1642189748460,28.58947715,148.67,148.58,16.3417]
[1642189748664,2.691,148.66,148.58,16.3417]
[1642189749263,2.691,148.71,148.58,16.3417]
[1642189749462,2.691,148.71,148.58,16.6017]
[1642189749663,2.691,148.71,148.58,24.6817]
[1642189750163,2.691,148.71,148.58,24.4217]
[1642189750164,31.38035123,148.7,148.58,24.4217]
[1642189750389,31.38035123,148.7,148.58,24.1717]
[1642189751088,31.38035123,148.7,148.58,24.4317]
[1642189751291,31.38035123,148.7,148.58,24.1717]
[1642189751794,31.38035123,148.7,148.58,24.4217]
[1642189752591,2.691,148.69,148.58,24.4217]
[1642189753899,31.38035123,148.7,148.58,24.4217]
[1642189754096,2.691,148.69,148.58,24.4217]
[1642189756199,2.691,148.69,148.58,24.1717]
[1642189756595,2.941,148.69,148.58,24.1717]
[1642189756994,2.941,148.69,148.58,16.0917]
[1642189757395,13.0319,148.69,148.58,16.0917]
[1642189757599,13.0319,148.69,148.58,10.0917]
[1642189757794,13.0319,148.69,148.58,10.3417]
[1642189758099,12.7819,148.69,148.58,10.0917]
[1642189758494,2.691,148.69,148.58,18.1717]
[1642189759098,2.691,148.69,148.58,24.1717]
[1642189759497,2.691,148.69,148.58,24.4217]
[1642189762598,2.941,148.69,148.58,24.4217]
[1642189762999,2.941,148.69,148.58,24.1717]
[1642189763799,2.691,148.69,148.58,24.1717]
[1642189764600,2.691,148.69,148.58,24.4217]
[1642189765000,2.691,148.69,148.58,24.1717]
[1642189765407,2.941,148.69,148.58,24.1717]
[1642189766309,2.941,148.69,148.58,92.1817]
[1642189766515,2.941,148.69,148.58,24.4217]
[1642189768121,13.0322,148.69,148.58,24.4217]
[1642189768324,13.0322,148.69,148.58,24.1717]
[1642189768918,13.0322,148.69,148.62,1.9196204]
[1642189769344,13.0322,148.69,148.62,7.9196204]
[1642189769946,13.0322,148.69,148.62,8.1696204]
[1642189770646,12.7822,148.69,148.62,8.1696204]
[1642189770845,34.07035123,148.7,148.62,8.1696204]
[1642189771648,34.07035123,148.7,148.64,1.9196204]
[1642189771846,31.38035123,148.7,148.64,1.9196204]
[1642189772060,31.38035123,148.7,148.64,2.1696204]
[1642189772450,41.47105123,148.7,148.64,2.1696204]
[1642189773049,41.72105123,148.7,148.64,2.1696204]
[1642189773251,41.72105123,148.7,148.64,1.9196204]
[1642189773453,41.72105123,148.7,148.63,1.9196204]
[1642189773652,2.69,148.69,148.63,1.9196204]
[1642189773853,10.0925,148.68,148.63,1.9196204]
[1642189774053,22.83418623,148.67,148.63,1.9196204]
[1642189774453,22.83418623,148.67,148.63,0.25]
[1642189775354,35.0423,148.7,148.63,0.25]
[1642189775553,24.9511,148.7,148.62,8.1696204]
[1642189775755,1.58634071,148.76,148.64,1.9196204]
[1642189775953,1.58634071,148.76,148.65,8.3864964]
[1642189776353,1.58634071,148.76,148.65,16.59727228]
[1642189776553,1.58634071,148.76,148.66,1.70077588]
[1642189776554,30.77561056,148.76,148.66,1.70077588]
[1642189776756,30.77561056,148.76,148.68,10.0853]
[1642189776956,29.18926985,148.76,148.69,9.9996204]
[1642189777153,29.18926985,148.76,148.69,11.70039628]
[1642189777354,29.18926985,148.76,148.69,16.2496204]
[1642189777757,29.18926985,148.76,148.69,8.1696204]
[1642189777956,29.18926985,148.76,148.7,1.9196204]
[1642189778358,29.18926985,148.76,148.7,8.1696204]
[1642189778959,29.18926985,148.76,148.7,16.3347]
[1642189779560,29.18926985,148.76,148.7,18.2543204]
[1642189780963,29.18926985,148.76,148.7,19.95509628]
[1642189781765,29.18926985,148.76,148.7,8.1696204]
[1642189782171,29.18926985,148.76,148.7,2.1696204]
[1642189782361,29.18926985,148.76,148.7,7.9196204]
[1642189782761,29.18926985,148.76,148.7,1.9196204]
[1642189783163,2.689,148.75,148.7,1.9196204]
[1642189783363,29.18926985,148.76,148.7,1.9196204]
[1642189783562,29.18926985,148.76,148.7,7.9196204]
[1642189783765,31.87826985,148.76,148.7,1.9196204]
[1642189783964,31.87826985,148.76,148.69,1.9196204]
[1642189784363,31.87826985,148.76,148.69,8.1696204]
[1642189784567,31.87826985,148.76,148.69,2.1696204]
[1642189785867,31.87826985,148.76,148.69,1.9196204]
[1642189786066,32.12826985,148.76,148.69,1.9196204]
[1642189786269,42.21586985,148.76,148.69,1.9196204]
[1642189787169,31.87826985,148.76,148.69,2.1696204]
[1642189787370,31.87826985,148.76,148.69,1.9196204]
[1642189787567,32.12826985,148.76,148.69,1.9196204]
[1642189787773,32.12826985,148.76,148.67,12.0064204]
[1642189787994,32.12826985,148.76,148.67,18.0064204]
[1642189788494,32.12826985,148.76,148.67,18.2564204]
[1642189788695,32.12826985,148.76,148.67,18.0064204]
[1642189789396,32.12826985,148.76,148.68,1.9196204]
[1642189789596,32.12826985,148.76,148.68,7.9196204]
[1642189789996,32.12826985,148.76,148.68,8.1696204]
[1642189791195,32.12826985,148.76,148.68,26.3179204]
[1642189791397,29.18926985,148.76,148.68,26.3179204]
[1642189791997,29.18926985,148.76,148.69,1.9196204]
[1642189792402,29.18926985,148.76,148.69,8.1696204]
[1642189792899,29.18926985,148.76,148.7,12.0042204]
[1642189793099,29.18926985,148.76,148.7,1.9196204]
[1642189793300,29.18926985,148.76,148.7,7.9196204]
[1642189794100,29.18926985,148.76,148.7,6.0]
[1642189794300,29.18926985,148.76,148.7,6.25]
[1642189795406,29.18926985,148.76,148.7,0.25]
[1642189795701,29.18926985,148.76,148.7,6.0]
[1642189796101,29.18926985,148.76,148.7,6.25]
[1642189796301,29.18926985,148.76,148.7,0.25]
[1642189796501,29.43926985,148.76,148.69,7.9196204]
[1642189796701,29.43926985,148.76,148.69,1.9196204]
[1642189796902,29.18926985,148.76,148.69,1.9196204]
[1642189797704,29.18926985,148.76,148.68,1.9196204]
[1642189797905,29.18926985,148.76,148.68,12.0056204]
[1642189798105,29.18926985,148.76,148.68,18.2556204]
[1642189799305,29.18926985,148.76,148.69,1.9196204]
[1642189799505,29.18926985,148.76,148.7,10.0849]
[1642189799905,29.18926985,148.76,148.7,10.3349]
[1642189800108,29.18926985,148.76,148.7,16.3349]
[1642189801206,22.5952,148.77,148.7,16.3349]
[1642189801907,2.689,148.79,148.7,26.11567588]
[1642189802108,1.58634071,148.8,148.7,94.12567588]
[1642189802310,1.58634071,148.81,148.7,96.04529628]
[1642189802509,1.58634071,148.81,148.73,0.3080894]
[1642189802711,1.58634071,148.81,148.77,10.0774]
[1642189802912,1.58634071,148.81,148.78,8.08]
[1642189803110,1.58634071,148.81,148.78,9.78077588]
[1642189803310,1.58634071,148.81,148.78,16.03077588]
[1642189803509,4.93502228,148.88,148.78,17.95039628]
[1642189803712,1.58634071,148.89,148.78,17.95039628]
[1642189804411,1.58634071,148.89,148.79,10.0767]
[1642189804612,4.27334071,148.89,148.79,10.0767]
[1642189804814,2.687,148.89,148.8,1.9196204]
[1642189805012,2.687,148.89,148.8,7.9196204]
[1642189805213,4.38777588,148.89,148.8,1.9196204]
[1642189805811,14.71677588,148.89,148.8,1.9196204]
[1642189806213,1.58634071,148.87,148.76,9.9996204]
[1642189806514,30.02257891,148.85,148.76,15.9996204]
[1642189806713,2.688,148.84,148.76,26.0803204]
[1642189807013,30.02257891,148.85,148.76,26.0803204]
[1642189807213,30.02257891,148.85,148.76,31.0387]
[1642189807412,1.58634071,148.86,148.76,100.74947588]
[1642189807816,1.58634071,148.86,148.76,100.99947588]
[1642189808217,1.58634071,148.86,148.76,101.32334387]
[1642189808418,2.688,148.89,148.79,1.9196204]
[1642189808617,73.63863228,148.9,148.84,10.0748]
[1642189808817,73.63863228,148.9,148.84,18.8908]
[1642189809016,73.63863228,148.9,148.84,25.1408]
[1642189809218,72.05229157,148.9,148.84,25.1408]
[1642189809420,72.05229157,148.9,148.84,15.066]
[1642189809617,72.05229157,148.9,148.84,9.066]
[1642189809820,74.73829157,148.9,148.84,9.066]
[1642189810019,74.73829157,148.9,148.81,1.9196204]
[1642189810222,74.73829157,148.9,148.82,0.25]
[1642189810427,74.98829157,148.9,148.82,0.25]
[1642189810821,74.98829157,148.9,148.81,7.9196204]
[1642189811021,1.58634071,148.89,148.81,6.0]
[1642189811224,2.687,148.88,148.81,6.0]
[1642189811424,25.36909609,148.87,148.81,6.0]
[1642189811633,25.36909609,148.87,148.79,10.0788]
[1642189811823,25.36909609,148.87,148.79,16.0788]
[1642189812422,25.36909609,148.87,148.79,16.3288]
[1642189814650,68.01,148.86,148.79,6.0]
[1642189814851,70.697,148.86,148.79,6.0]
[1642189815049,70.947,148.86,148.77,16.0797]
[1642189815250,70.947,148.86,148.77,10.0797]
[1642189815750,90.4577,148.86,148.72,33.603]
[1642189815950,27.14122711,148.84,148.72,6.0]
[1642189816153,2.688,148.83,148.72,6.0]
[1642189816352,2.688,148.83,148.71,15.68]
[1642189816552,31.34954374,148.81,148.71,15.68]
[1642189816954,31.34954374,148.81,148.73,10.0822]
[1642189817153,34.03754374,148.81,148.73,10.0822]
[1642189817353,34.03754374,148.81,148.73,16.3322]
[1642189818157,31.34954374,148.81,148.73,16.3322]
[1642189819558,31.34954374,148.81,148.73,16.0822]
[1642189820261,34.03754374,148.81,148.73,16.0822]
[1642189820661,34.03754374,148.81,148.73,16.3322]
[1642189822165,34.03754374,148.81,148.73,16.0822]
[1642189822367,34.03754374,148.81,148.73,15.0822]
[1642189822567,34.03754374,148.81,148.73,6.0]
[1642189822971,68.01,148.8,148.71,25.7637]
[1642189823367,68.01,148.8,148.71,27.46447588]
[1642189823569,68.01,148.8,148.71,26.0137]
[1642189824172,31.34954374,148.81,148.71,26.0137]
[1642189824374,2.688,148.8,148.71,26.0137]
[1642189824573,2.688,148.8,148.72,1.91841682]
[1642189824773,2.688,148.8,148.72,12.00191682]
[1642189824972,2.938,148.8,148.72,18.00191682]
[1642189825873,2.688,148.8,148.72,18.00191682]
[1642189826674,2.688,148.8,148.72,17.00191682]
[1642189826874,2.688,148.8,148.72,17.25191682]
[1642189827674,2.688,148.8,148.72,16.3335]
[1642189827874,2.688,148.8,148.75,10.0815]
[1642189828077,24.0041,148.82,148.75,16.3315]
[1642189829178,52.27159755,148.85,148.75,24.1435]